bitfinex/quotes_ETHUSD_20220215
["timestamp","ask_amount","ask_price","bid_price","bid_amount"]
[1644941633939,0.00716841,3136.0,3135.5,1.0]
[1644941634137,0.00716841,3136.0,3135.6,1.0]
[1644941634536,1.5941,3135.8,3135.6,0.9]
[1644941634734,0.001,3135.7,3135.6,0.79712]
[1644941635135,0.001,3135.7,3135.6,1.79712]
[1644941635335,0.79703,3135.9,3135.6,1.79712]
[1644941635535,0.00179241,3136.0,3135.6,5.69828441]
[1644941635785,0.00179241,3136.0,3135.8,1.0]
[1644941635985,0.79791,3136.1,3135.9,1.79692]
[1644941636386,0.00179241,3136.0,3135.9,4.06048589]
[1644941636581,0.00179241,3136.0,3135.9,0.79692]
[1644941636980,0.00179241,3136.0,3135.9,1.79692]
[1644941637183,0.79694,3136.0,3135.9,5.05149957]
[1644941637385,0.79794,3136.0,3135.9,5.25457957]
[1644941637583,0.79794,3136.0,3135.9,2.0]
[1644941638184,0.79794,3136.0,3135.9,4.19465102]
[1644941638385,0.79794,3136.0,3135.9,6.11231102]
[1644941638386,0.001,3136.0,3135.9,6.11231102]
[1644941638587,0.00179793,3136.1,3135.9,6.11711102]
[1644941638784,0.00179793,3136.1,3135.9,6.17121081]
[1644941638984,0.00179793,3136.1,3136.0,1.0]
[1644941639183,0.00179793,3136.1,3136.0,4.34934542]
[1644941639440,0.00179793,3136.1,3136.0,6.19388455]
[1644941639741,0.00217074,3136.7,3136.0,6.19788455]
[1644941639943,0.00217074,3136.7,3136.3,0.79671]
[1644941640143,0.00217074,3136.7,3136.6,18.82]
[1644941640339,0.00217074,3136.7,3136.6,20.65251674]
[1644941640541,0.79653,3137.6,3136.6,20.95251674]
[1644941640739,0.79753,3137.6,3136.7,22.91188147]
[1644941640942,0.00359267,3137.5,3137.4,1.0]
[1644941641146,0.79753,3137.6,3137.4,1.0]
[1644941641147,0.75112267,3137.6,3137.4,1.0]
[1644941641941,0.75112267,3137.6,3137.4,1.79659]
[1644941642344,0.01307026,3138.0,3137.5,22.704]
[1644941642542,0.01307026,3138.0,3137.5,19.3488]
[1644941642743,0.80947026,3138.0,3137.8,1.0]
[1644941642942,0.80947026,3138.0,3137.9,1.97668]
[1644941642943,0.01307026,3138.0,3137.9,1.97668]
[1644941643191,0.01307026,3138.0,3137.9,2.97668]
[1644941643389,0.25,3138.5,3137.9,31.29668]
[1644941643592,0.01484198,3139.6,3138.8,6.85]
[1644941643793,2.57166776,3139.3,3138.9,19.204]
[1644941643986,2.57166776,3139.3,3139.2,1.0]
[1644941644188,0.90903976,3139.7,3139.2,1.0]
[1644941644189,0.90903976,3139.7,3139.3,0.02181547]
[1644941644396,0.057,3140.8,3139.3,0.02181547]
[1644941644397,0.25,3140.3,3140.2,18.82]
[1644941644591,0.057,3140.8,3140.4,0.36169836]
[1644941644789,0.01597588,3140.9,3140.4,19.56569836]
[1644941644988,0.62161793,3142.1,3140.9,18.82]
[1644941644989,0.25,3141.9,3140.9,18.82]
[1644941645190,0.25,3141.9,3140.8,5.0]
[1644941645191,0.01546986,3142.1,3141.4,5.0127132]
[1644941645388,0.01546986,3142.1,3141.0,3.884]
[1644941645389,1.43463252,3141.3,3141.0,0.17930005]
[1644941645590,2.39079174,3141.3,3140.9,0.1232]
[1644941645791,0.05002126,3141.2,3141.0,1.0]
[1644941646091,0.98989446,3140.6,3140.4,0.36169836]
[1644941646293,0.926498,3141.1,3140.2,0.99923476]
[1644941646294,5.0,3141.0,3140.2,0.99923476]
[1644941646489,0.0460423,3140.5,3138.8,2.4740492]
[1644941646690,0.01273787,3139.5,3138.0,3.5]
[1644941646938,0.79626,3139.3,3138.1,0.1232]
[1644941647132,0.79626,3139.3,3137.7,0.1854]
[1644941647133,0.79626,3139.3,3137.8,3.1839]
[1644941647436,0.95481785,3138.7,3137.4,3.2836]
[1644941647634,0.001,3139.1,3137.5,3.6248]
[1644941647835,0.79645,3138.6,3137.4,0.1224]
[1644941648035,0.79645,3138.6,3137.0,0.1192]
[1644941648036,0.79659,3138.3,3137.0,0.1192]
[1644941648333,0.79659,3138.3,3136.6,3.64]
[1644941648334,0.79759,3138.3,3136.6,3.64]
[1644941648534,5.24809,3138.3,3136.7,0.1288]
[1644941648733,1.15470245,3137.5,3136.7,0.1248]
[1644941648938,0.001,3137.4,3136.6,0.1232]
[1644941649140,0.79663,3138.1,3136.6,0.1224]
[1644941649141,0.79671,3137.6,3136.6,0.1224]
[1644941649336,0.001,3137.7,3136.4,0.12]
[1644941649539,0.00215013,3137.2,3136.2,3.6256]
[1644941649735,0.00215013,3137.2,3136.2,3.5]
[1644941650136,0.00215013,3137.2,3136.5,0.79669]
[1644941650441,0.001,3137.7,3136.6,0.1216]
[1644941650679,0.79764,3137.8,3136.6,0.1208]
[1644941650982,0.00215013,3137.0,3136.3,0.1344]
[1644941651179,0.1,3136.6,3136.2,3.624]
[1644941651380,0.1,3136.6,3136.1,1.5934]
[1644941651381,0.01189415,3136.6,3136.1,1.5934]
[1644941651684,0.01189415,3136.6,3136.1,3.37740757]
[1644941651879,0.01189415,3136.6,3136.1,3.41450675]
[1644941652083,0.01189415,3136.6,3136.2,0.1232]
[1644941652480,0.01189415,3136.6,3136.0,1.59344]
[1644941652481,0.01189415,3136.6,3136.0,1.71504]
[1644941652681,0.01189415,3136.6,3136.0,1.59344]
[1644941653382,0.01189415,3136.6,3136.0,1.71424]
[1644941653581,0.01189415,3136.6,3136.0,1.59344]
[1644941653781,0.01189415,3136.6,3136.0,2.59344]
[1644941653982,0.01189415,3136.6,3136.0,1.59344]
[1644941654186,0.01189415,3136.6,3136.1,1.1192]
[1644941654444,0.01189415,3136.6,3136.1,1.0]
[1644941654840,0.01189415,3136.6,3135.9,0.169334]
[1644941655237,0.01189415,3136.6,3135.5,1.53390836]
[1644941655437,0.01189415,3136.6,3135.6,0.12]
[1644941655638,0.01189415,3136.6,3135.5,1.53390836]
[1644941655837,0.01189415,3136.6,3135.6,0.49618688]
[1644941656238,0.01189415,3136.6,3135.6,0.61538688]
[1644941656438,0.01189415,3136.6,3135.7,0.1296]
[1644941656638,0.01189415,3136.6,3135.7,0.1304]
[1644941656843,0.01189415,3136.6,3135.8,0.49618688]
[1644941657037,0.01189415,3136.6,3135.7,0.1296]
[1644941657241,0.01189415,3136.6,3135.6,1.1216]
[1644941657242,1.08492692,3136.3,3135.6,1.1216]
[1644941657438,1.08492692,3136.3,3134.8,1.84790221]
[1644941657439,3.53168181,3136.2,3135.3,0.128]
[1644941657641,0.001,3136.2,3135.3,1.41102325]
[1644941657841,0.01189415,3136.6,3135.6,5.0]
[1644941657842,3.40449415,3136.6,3135.6,5.0]
[1644941658040,0.00457471,3136.5,3135.6,5.0]
[1644941658288,0.00457471,3136.5,3135.3,1.41102325]
[1644941658490,0.00457471,3136.5,3135.5,0.79697]
[1644941659890,0.001,3136.5,3135.5,0.79697]
[1644941660289,0.001,3136.5,3135.6,3.47093489]
[1644941660492,0.001,3136.5,3135.5,0.79697]
[1644941660689,0.79707,3136.3,3135.5,0.79697]
[1644941661089,1.0925781,3136.2,3135.5,0.79697]
[1644941661290,3.41309337,3136.6,3135.6,3.22480237]
[1644941661291,0.001,3136.1,3135.6,3.22480237]
[1644941661489,3.40449415,3136.6,3135.5,0.79697]
[1644941661490,0.001,3136.5,3135.5,0.79697]
[1644941661688,0.00959922,3136.5,3135.5,0.79697]
[1644941661930,0.00959922,3136.5,3135.5,1.91617]
[1644941662135,0.00959922,3136.5,3135.5,1.91777]
[1644941662434,0.00959922,3136.5,3135.7,1.59384]
[1644941662630,0.001,3136.5,3135.7,1.49384]
[1644941662830,0.001,3136.5,3135.7,1.61624]
[1644941662831,0.301,3136.5,3135.7,1.61624]
[1644941663030,0.301,3136.5,3135.7,1.61464]
[1644941663231,0.301,3136.5,3135.7,1.61704]
[1644941663437,0.301,3136.5,3135.7,1.61624]
[1644941663633,0.301,3136.5,3135.8,0.1192]
[1644941663832,0.001,3136.5,3135.7,1.61624]
[1644941664232,0.001,3136.5,3135.7,1.61544]
[1644941664534,0.001,3136.5,3135.5,0.1352]
[1644941664535,1.02373556,3135.9,3135.5,0.1352]
[1644941664740,0.301,3136.5,3135.0,3.5]
[1644941664741,1.13261851,3135.4,3135.0,0.1256]
[1644941664933,1.1047,3135.9,3135.1,0.49611761]
[1644941665139,0.001,3135.8,3134.6,3.5]
[1644941665333,0.001,3135.8,3134.7,0.4967339]
[1644941665533,0.79728,3135.6,3134.7,0.4967339]
[1644941665792,1.11232913,3135.3,3134.7,1.2940139]
[1644941665990,0.79728,3135.6,3134.2,3.5]
[1644941665991,0.3,3135.6,3134.2,3.5]
[1644941666189,0.3,3135.6,3134.1,1.59472]
[1644941666190,0.3,3135.6,3134.3,0.49275932]
[1644941666391,4.9557,3135.8,3134.4,0.49275932]
[1644941666590,4.5899,3135.8,3134.1,1.59472]
[1644941666788,0.79741,3135.4,3134.2,0.49264878]
[1644941666990,2.61617194,3135.4,3134.2,0.49264878]
[1644941667190,1.5948334,3135.4,3134.4,0.79737]
[1644941667397,1.5948334,3135.4,3134.5,3.74432113]
[1644941667398,0.79741,3135.4,3134.5,3.74432113]
[1644941667590,0.79741,3135.4,3134.6,0.49264878]
[1644941667789,0.79741,3135.4,3134.7,0.49264878]
[1644941667988,0.79741,3135.4,3134.8,0.49264878]
[1644941668189,0.79741,3135.4,3134.1,22.51081986]
[1644941668390,0.79741,3135.4,3134.7,0.79728]
[1644941668593,0.79741,3135.4,3134.8,0.49278613]
[1644941669190,7.00220572,3135.8,3134.8,0.49278613]
[1644941669191,0.79726,3135.5,3134.8,0.49278613]
[1644941669432,1.59458,3135.5,3134.8,0.49278613]
[1644941669637,2.45203174,3135.3,3134.9,0.49278613]
[1644941669833,2.45203174,3135.3,3134.5,1.59454]
[1644941670038,1.59477,3135.3,3134.6,0.49290778]
[1644941670434,0.79726,3135.5,3134.7,0.79726]
[1644941670632,0.79726,3135.5,3134.8,0.49290778]
[1644941671233,0.79726,3135.5,3134.8,0.44290778]
[1644941671434,0.79726,3135.5,3134.5,1.59454]
[1644941671635,1.59455,3135.5,3134.5,1.59454]
[1644941671834,0.79726,3135.5,3134.5,1.59454]
[1644941672133,0.79735,3135.1,3134.5,1.59454]
[1644941672333,0.79735,3135.1,3134.2,1.59469]
[1644941672740,0.79735,3135.1,3134.0,1.59482]
[1644941672741,0.79745,3135.0,3134.0,1.59482]
[1644941672939,0.79745,3135.0,3133.8,0.0023532]
[1644941673190,1.91759592,3134.3,3133.8,0.0023532]
[1644941673489,1.91759592,3134.3,3133.8,0.79756]
[1644941673892,0.79759,3134.3,3133.8,0.00237037]
[1644941674693,0.79759,3134.3,3133.5,1.5951]
[1644941674892,0.79759,3134.3,3133.8,0.79992031]
[1644941675093,0.79762,3134.2,3133.8,0.00237031]
[1644941675295,0.79759,3134.3,3133.8,0.00237031]
[1644941675893,0.79759,3134.3,3133.5,1.5951]
[1644941676093,0.79759,3134.3,3133.8,0.00237031]
[1644941676296,0.79759,3134.3,3133.8,0.79994031]
[1644941677148,0.79755,3134.4,3133.8,0.79757]
[1644941677344,0.79755,3134.4,3133.8,0.7999424]
[1644941678347,0.79755,3134.4,3133.8,0.79757]
[1644941678546,0.79755,3134.4,3133.8,0.79994241]
[1644941679550,1.13469605,3134.1,3133.8,0.79757]
[1644941679750,0.79765,3134.0,3133.8,0.00237241]
[1644941679948,1.13469605,3134.1,3133.8,0.00237241]
[1644941680786,1.13469605,3134.1,3133.7,0.79759]
[1644941680983,1.13469605,3134.1,3133.8,0.00237302]
[1644941681785,1.13469605,3134.1,3133.7,0.79759]
[1644941682182,1.13469605,3134.1,3133.8,0.00237302]
[1644941682382,0.7975251,3134.6,3133.8,0.00237302]
[1644941682584,5.96251,3134.7,3133.8,3.23043424]
[1644941682782,5.04661,3134.9,3133.9,1.59495]
[1644941683383,5.8440833,3134.9,3133.9,1.59495]
[1644941683584,1.06063553,3134.5,3133.9,1.59495]
[1644941683785,0.79749,3134.4,3133.9,1.59495]
[1644941684431,1.06063553,3134.5,3133.9,1.59495]
[1644941684933,0.97766944,3134.0,3133.9,1.542739]
[1644941685135,1.71900855,3134.0,3133.8,0.97944275]
[1644941685635,1.71900855,3134.0,3133.8,0.97707]
[1644941685636,0.26889506,3134.0,3133.8,0.97707]
[1644941685843,0.14508651,3134.0,3133.8,0.97707]
[1644941686436,1.59508,3134.3,3133.8,0.97707]
[1644941687338,0.79754,3134.3,3133.8,0.97707]
[1644941687938,1.59507,3134.3,3133.8,0.97707]
[1644941688181,1.59507,3134.3,3133.8,0.97944281]
[1644941688384,2.62354873,3134.3,3133.8,0.97944281]
[1644941689186,1.59507,3134.3,3133.8,0.97707]
[1644941689394,3.4516,3134.9,3133.8,21.51062506]
[1644941689586,3.4516,3134.9,3134.1,0.79738]
[1644941689788,3.4516,3134.9,3134.1,1.48138]
[1644941689986,3.4516,3134.9,3134.2,0.1264]
[1644941690287,3.4516,3134.9,3134.2,0.1248]
[1644941690585,3.4516,3134.9,3134.2,0.1208]
[1644941690784,3.4516,3134.9,3134.2,0.1216]
[1644941690990,3.4516,3134.9,3134.3,0.79725]
[1644941691409,3.4516,3134.9,3134.3,2.58400276]
[1644941691585,3.4516,3134.9,3134.4,0.4502307]
[1644941692733,3.4516,3134.9,3134.4,1.4502307]
[1644941692934,3.4516,3134.9,3134.5,1.2475507]
[1644941693138,3.4516,3134.9,3134.6,0.4502307]
[1644941693733,3.4516,3134.9,3134.7,0.4502307]
[1644941693934,3.4516,3134.9,3134.8,0.4502307]
[1644941694337,0.79732,3135.1,3134.4,0.5702307]
[1644941694536,0.79732,3135.1,3134.5,0.4502307]
[1644941694936,0.79732,3135.1,3134.4,1.7502307]
[1644941694937,0.93155074,3134.9,3134.4,1.7502307]
[1644941695135,0.93155074,3134.9,3134.5,0.4502307]
[1644941695336,0.93155074,3134.9,3134.8,1.59454]
[1644941695538,0.93155074,3134.9,3134.8,2.0447707]
[1644941696587,0.79734,3135.0,3134.8,2.0447707]
[1644941696787,0.79734,3135.0,3134.9,0.4502307]
[1644941697383,0.79731,3135.1,3134.9,1.2475107]
[1644941697585,1.87270737,3135.1,3135.0,0.4502307]
[1644941699188,0.79731,3135.1,3135.0,0.4502307]
[1644941699442,3.79509997,3135.4,3135.1,0.7972]
[1644941699646,0.13819997,3135.4,3135.1,0.7972]
[1644941699841,0.13819997,3135.4,3135.2,0.4502307]
[1644941700040,0.13819997,3135.4,3135.3,0.4502307]
[1644941700441,0.7972,3135.5,3134.9,0.4502307]
[1644941700840,0.7972,3135.5,3135.3,0.79717]
[1644941701039,1.72361024,3135.5,3135.4,0.4502307]
[1644941702544,0.7972,3135.5,3135.4,0.4502307]
[1644941702743,0.79709,3135.8,3135.4,4.15451534]
[1644941702942,0.001,3136.1,3135.5,1.2472607]
[1644941703190,0.001,3136.1,3135.6,3.82499985]
[1644941703393,0.79802,3136.1,3135.7,1.4502307]
[1644941703589,0.79802,3136.1,3135.8,0.4502307]
[1644941703791,0.79802,3136.1,3135.8,0.7502307]
[1644941703994,1.59506,3136.1,3135.9,1.2472807]
[1644941704191,0.001,3136.0,3135.9,0.79705]
[1644941704391,0.001,3136.0,3135.9,1.24655338]
[1644941705091,1.49506,3136.1,3135.9,1.24655338]
[1644941705294,7.64953773,3136.2,3136.0,0.44950338]
[1644941705494,6.20010693,3136.2,3136.0,0.44950338]
[1644941705793,2.74720693,3136.2,3136.0,1.24654338]
[1644941705992,2.74720693,3136.2,3136.1,0.44950338]
[1644941706193,2.74720693,3136.2,3136.0,0.79704]
[1644941706395,3.04720693,3136.2,3135.1,0.59255345]
[1644941706601,0.79729,3135.8,3134.9,0.59255345]
[1644941706793,1.07613506,3135.2,3134.9,0.59255345]
[1644941707038,1.07613506,3135.2,3134.8,0.59255345]
[1644941707247,2.57807,3136.2,3134.9,0.59255345]
[1644941707449,2.39209,3135.5,3134.9,0.59255345]
[1644941707640,0.7973,3135.1,3134.8,0.59255345]
[1644941707838,1.5946233,3135.1,3134.9,0.59255345]
[1644941708239,2.4386296,3135.1,3134.8,0.59255345]
[1644941708439,2.4386296,3135.1,3134.9,0.59255345]
[1644941708842,2.4386296,3135.1,3134.9,1.38991345]
[1644941709040,3.2359596,3135.1,3134.9,1.38991345]
[1644941709247,0.04051311,3135.0,3134.9,0.79736]
[1644941709442,0.08102622,3135.0,3134.8,0.59255345]
[1644941709646,2.47339802,3135.0,3134.6,0.59255345]
[1644941709842,3.57107622,3135.0,3134.6,0.59255345]
[1644941710048,3.57107622,3135.0,3134.0,2.75286014]
[1644941710049,9.5426403,3134.9,3134.0,2.75286014]
[1644941710247,0.79759,3134.6,3134.0,1.15365401]
[1644941710443,0.86262937,3134.5,3134.0,1.15365401]
[1644941710702,1.16262937,3134.5,3134.0,1.15365401]
[1644941711098,1.96029967,3134.5,3134.0,1.15365401]
[1644941711299,2.75799967,3134.5,3134.0,1.15365401]
[1644941711501,0.79766,3134.4,3134.0,1.15365401]
[1644941711700,2.39316,3134.4,3134.0,1.15365401]
[1644941711904,2.39316,3134.4,3134.0,4.22673959]
[1644941711905,0.3,3134.3,3134.0,4.22673959]
[1644941712302,0.79774,3134.3,3134.0,4.22673959]
[1644941712499,0.79774,3134.3,3134.0,9.4449872]
[1644941712703,1.59549,3134.3,3134.0,9.4449872]
[1644941713001,0.3,3134.2,3134.0,9.4449872]
[1644941713205,0.01252329,3134.1,3132.7,0.80163613]
[1644941713404,0.01252329,3134.1,3133.8,0.00237273]
[1644941713405,1.881215,3133.9,3133.8,0.00237273]
[1644941713702,0.3,3133.8,3132.5,0.80163613]
[1644941714001,0.55,3133.7,3132.4,0.80163613]
[1644941714200,1.59599,3133.6,3132.5,0.79791]
[1644941714439,2.3939824,3133.6,3132.4,0.80163613]
[1644941714635,1.05664454,3132.7,3132.3,0.80163613]
[1644941714834,2.65272454,3132.7,3132.3,0.80163613]
[1644941715233,0.3,3132.6,3132.3,0.80163613]
[1644941715434,0.3,3132.6,3132.2,0.80163613]
[1644941715637,1.5962156,3132.5,3132.2,0.80163613]
[1644941715835,1.59613,3132.6,3132.5,0.4670507]
[1644941716033,5.36651461,3132.6,3132.5,0.4670507]
[1644941716235,5.36651461,3132.6,3132.0,0.80163613]
[1644941716439,1.02966995,3132.2,3131.9,0.80163613]
[1644941716636,4.29476528,3132.1,3131.9,0.80163613]
[1644941716840,4.29476528,3132.1,3131.0,2.50020398]
[1644941716841,3.75560817,3132.0,3131.8,0.80163613]
[1644941717236,6.58776111,3132.1,3131.8,0.80163613]
[1644941718037,6.58776111,3132.1,3131.4,1.20337576]
[1644941718038,3.9917304,3132.0,3131.4,1.20337576]
[1644941718287,3.9917304,3132.0,3131.8,0.002722]
[1644941718288,4.47052156,3131.9,3131.8,0.002722]
[1644941719083,4.47052156,3131.9,3130.6,1.20337576]
[1644941719084,6.06719156,3131.9,3130.7,0.79833]
[1644941719384,0.79835,3131.5,3130.5,1.20337576]
[1644941719686,0.79835,3131.5,3130.3,1.59669]
[1644941719687,4.44007907,3131.4,3130.4,1.20800388]
[1644941719883,0.04051311,3130.9,3130.4,0.00462812]
[1644941720083,0.04051311,3130.9,3130.4,0.60439813]
[1644941720284,0.83899311,3130.9,3130.4,0.59977001]
[1644941720484,0.96809859,3130.6,3130.5,0.00462812]
[1644941720686,0.96809859,3130.6,3130.5,0.00272286]
[1644941720884,4.72820132,3130.6,3130.5,0.00272286]
[1644941721091,5.02820132,3130.6,3130.5,0.00272286]
[1644941721287,5.32820132,3130.6,3130.5,0.00272286]
[1644941721490,0.79879,3129.8,3129.5,0.00462812]
[1644941721943,0.79879,3129.8,3129.3,0.01557432]
[1644941722944,0.79879,3129.8,3129.3,0.0109462]
[1644941723446,1.59758,3129.8,3129.3,0.0109462]
[1644941723645,0.79854,3130.2,3129.3,0.0109462]
[1644941723848,0.25,3130.8,3129.3,18.9912572]
[1644941724045,0.25,3130.8,3129.4,4.33846848]
[1644941724247,3.44431311,3130.9,3129.6,1.59688]
[1644941724444,3.44431311,3130.9,3129.7,3.50462812]
[1644941724645,3.44431311,3130.9,3129.8,0.00462812]
[1644941724851,0.79842,3130.6,3130.1,0.79841]
[1644941725047,0.79842,3130.6,3130.2,0.00462812]
[1644941725247,0.08102622,3130.5,3130.2,0.00462812]
[1644941725546,0.22636683,3130.8,3130.2,0.00735118]
[1644941726198,0.79842,3130.6,3130.2,0.00272306]
[1644941726498,0.79842,3130.6,3130.3,0.00272296]
[1644941726698,0.79842,3130.6,3130.3,0.80110296]
[1644941726898,0.79842,3130.6,3130.3,0.80573108]
[1644941727101,0.79842,3130.6,3130.3,0.00735108]
[1644941727503,0.79842,3130.6,3130.3,0.00462812]
[1644941727701,0.79847,3130.5,3130.3,0.00735111]
[1644941727901,0.79842,3130.6,3130.3,0.80573111]
[1644941728101,0.79842,3130.6,3130.3,0.00735111]
[1644941728701,0.79842,3130.6,3130.3,0.00462812]
[1644941728901,0.79842,3130.6,3130.3,0.00735111]
[1644941729103,0.79846,3130.5,3130.3,0.00272299]
[1644941729536,0.79842,3130.6,3130.3,0.00272299]
[1644941729937,0.79842,3130.6,3130.1,0.00462812]
[1644941730142,0.79842,3130.6,3130.3,0.00272299]
[1644941730937,1.81121214,3130.6,3130.3,0.00272299]
[1644941731138,0.48053527,3130.6,3130.1,0.00462812]
[1644941731339,0.48053527,3130.6,3130.3,0.00272299]
[1644941732338,0.48053527,3130.6,3130.1,0.00462812]
[1644941732538,1.27895527,3130.6,3130.3,0.00272299]
[1644941733586,1.80649126,3130.1,3129.7,0.80317812]
[1644941733788,1.59711,3130.1,3129.8,0.00462812]
[1644941734190,1.59707,3130.4,3129.8,3.29051047]
[1644941734393,5.589443,3131.9,3129.5,20.41703]
[1644941734394,0.27639994,3131.6,3129.9,0.28403368]
[1644941734590,3.68039994,3131.6,3130.0,19.1086618]
[1644941734792,1.12432984,3131.4,3130.1,0.2886618]
[1644941735090,2.72086984,3131.4,3130.3,0.00272296]
[1644941735391,1.12432984,3131.4,3130.3,0.00735108]
[1644941735887,1.12432984,3131.4,3130.3,0.00462812]
[1644941736287,0.00203326,3131.1,3130.4,5.6]
[1644941736489,0.00203326,3131.1,3130.5,0.00462812]
[1644941736689,0.00203326,3131.1,3130.3,0.002723]
[1644941736690,1.0214076,3130.8,3130.6,0.79834]
[1644941736933,1.0214076,3130.8,3130.7,0.00462812]
[1644941737334,0.00203326,3131.1,3130.7,0.00462812]
[1644941737940,0.79838,3130.9,3130.7,0.00462812]
[1644941738135,0.79838,3130.9,3130.4,0.79839]
[1644941738335,0.79841,3130.8,3130.5,0.00462812]
[1644941738536,1.86342249,3130.8,3130.5,0.00462812]
[1644941739537,1.86342249,3130.8,3130.3,0.00462812]
[1644941739736,3.46031249,3130.8,3130.3,0.00462812]
[1644941739937,4.25876649,3130.8,3130.4,0.79841]
[1644941740137,4.25876649,3130.8,3130.5,0.00462812]
[1644941740542,3.46031249,3130.8,3130.4,0.75303812]
[1644941740792,3.46031249,3130.8,3130.5,0.00478918]
[1644941741391,4.25875569,3130.8,3130.5,0.00478918]
[1644941741686,0.79854,3130.6,3130.3,0.00751217]
[1644941741887,1.09854,3130.6,3130.3,0.00272299]
[1644941743292,2.39594,3130.5,3130.3,0.00272299]
[1644941743489,4.7922,3130.5,3130.3,0.00272299]
[1644941743690,3.616,3130.4,3130.3,0.00272299]
[1644941743891,8.2484,3130.4,3130.3,0.00272299]
[1644941744088,8.2484,3130.4,3130.3,2.299e-05]
[1644941744289,9.2484,3130.4,3130.3,2.299e-05]
[1644941744541,0.79884,3130.0,3129.3,0.0109462]
[1644941745340,0.3,3129.9,3129.3,0.0109462]
[1644941745541,1.08024972,3129.8,3129.3,0.0109462]
[1644941745942,1.87911972,3129.8,3129.3,0.0109462]
[1644941746140,2.39674,3129.7,3129.3,0.0109462]
[1644941747042,3.1956905,3129.7,3129.3,0.0109462]
[1644941747241,7.94895,3129.6,3128.4,0.79895]
[1644941747445,0.79897,3129.3,3128.5,0.00478918]
[1644941747643,4.53889424,3129.2,3128.3,0.00478918]
[1644941747842,1.12979667,3128.4,3128.2,0.00224504]
[1644941748041,8.94889424,3129.2,3128.2,0.00224504]
[1644941748042,11.0197,3129.2,3128.2,0.00224504]
[1644941748290,0.79898,3128.4,3128.2,0.00224504]
[1644941748889,0.79898,3128.4,3128.2,0.80125504]
[1644941749088,1.80967794,3128.4,3128.3,0.24557321]
[1644941749289,0.79898,3128.4,3128.3,0.25036239]
[1644941749489,0.79888,3128.6,3128.3,0.25036239]
[1644941749688,0.79888,3128.6,3128.3,0.00478918]
[1644941749888,0.79888,3128.6,3128.2,0.00224504]
[1644941750087,0.79888,3128.6,3128.4,1.59775]
[1644941750288,0.79888,3128.6,3128.4,1.60253918]
[1644941750694,0.99993278,3128.9,3128.4,2.40141918]
[1644941750892,0.99993278,3128.9,3128.5,0.24652155]
[1644941751187,0.99993278,3128.9,3128.6,0.00478918]
[1644941751936,1.79888018,3128.9,3128.6,0.00478918]
[1644941752340,1.79888018,3128.9,3128.3,0.79887]
[1644941752341,1.79888018,3128.9,3128.4,0.00478918]
[1644941752537,2.75928018,3128.9,3128.4,0.00478918]
[1644941752938,2.75928018,3128.9,3128.5,0.24715324]
[1644941753138,2.75928018,3128.9,3128.6,0.00478918]
[1644941753442,0.7991,3128.8,3128.2,0.00224504]
[1644941753638,0.83979434,3128.4,3128.2,0.00224504]
[1644941753839,0.83979434,3128.4,3128.2,0.00703422]
[1644941754037,2.3972397,3128.8,3128.3,0.24710757]
[1644941754038,1.5981397,3128.8,3128.3,0.24710757]
[1644941754240,1.59430657,3128.8,3128.4,0.25189675]
[1644941754541,1.59430657,3128.8,3128.2,0.00224504]
[1644941754940,1.59430657,3128.8,3128.7,0.00166423]
[1644941756496,1.77929765,3128.9,3128.7,0.00166423]
[1644941759093,0.799004,3128.9,3128.7,0.24628736]
[1644941759295,0.799004,3128.9,3128.7,0.00166423]
[1644941759537,0.799004,3128.9,3128.7,0.00645341]
[1644941759738,0.799004,3128.9,3128.8,0.24462313]
[1644941760142,0.799004,3128.9,3128.8,0.24941231]
[1644941760342,3.3635,3129.2,3128.8,0.00478918]
[1644941760547,5.5502,3130.1,3128.8,0.24462313]
[1644941760745,5.5502,3130.1,3128.9,0.41768385]
[1644941760746,3.3167,3130.0,3128.9,0.41768385]
[1644941760942,3.3167,3130.0,3129.0,4.12862313]
[1644941761147,3.3167,3130.0,3129.1,0.45256448]
[1644941761339,3.3167,3130.0,3129.2,0.24941231]
[1644941761539,3.3167,3130.0,3129.3,1.04788231]
[1644941761740,3.29,3130.7,3129.5,1.09851]
[1644941761941,5.4204,3131.1,3129.5,1.09851]
[1644941761942,3.6433,3130.6,3129.6,0.24941231]
[1644941762143,3.6433,3130.6,3129.7,0.47534372]
[1644941762339,3.6433,3130.6,3129.8,0.24941231]
[1644941762542,3.6433,3130.6,3129.9,0.24462313]
[1644941762740,4.83035862,3130.6,3130.0,0.00478918]
[1644941762940,4.83035862,3130.6,3130.1,0.24462313]
[1644941763207,7.22615922,3130.6,3130.2,0.00478918]
[1644941763406,8.02480922,3130.6,3130.2,0.00478918]
[1644941763610,7.22625352,3130.6,3129.8,0.00478918]
[1644941763812,6.0391949,3130.6,3129.9,0.24489828]
[1644941764005,1.16092716,3130.1,3130.0,0.24489828]
[1644941764207,1.16092716,3130.1,3129.6,0.79865]
[1644941764509,1.16092716,3130.1,3129.8,0.79862]
[1644941764705,1.16092716,3130.1,3129.9,0.24489828]
[1644941765509,0.73433228,3130.1,3129.9,0.24489828]
[1644941766711,6.85,3130.0,3129.8,0.00476558]
[1644941766942,0.73433228,3130.1,3129.4,0.00476558]
[1644941767142,0.73433228,3130.1,3129.3,0.0011061]
[1644941767341,1.05620532,3129.4,3129.3,0.0011061]
[1644941768142,4.70120532,3129.4,3129.3,0.0011061]
[1644941769846,3.645,3129.4,3128.7,0.00476558]
[1644941770045,3.645,3129.4,3128.8,1.59761]
[1644941770246,3.645,3129.4,3128.9,0.00476558]
[1644941770894,3.645,3129.4,3128.9,0.79885]
[1644941771096,3.645,3129.4,3128.9,1.09885]
[1644941771300,0.25,3130.4,3129.1,1.81262118]
[1644941771497,3.4223,3130.6,3129.2,4.35453559]
[1644941771799,3.4223,3130.6,3129.7,0.23222741]
[1644941771997,4.29024068,3130.6,3129.9,0.79848]
[1644941772196,4.29024068,3130.6,3130.0,0.00476558]
[1644941772395,4.29024068,3130.6,3130.0,0.3]
[1644941772594,4.29024068,3130.6,3130.1,0.00476558]
[1644941772995,4.29024068,3130.6,3130.1,0.00272559]
[1644941773396,5.08884038,3130.6,3130.1,0.00272559]
[1644941773795,5.08884038,3130.6,3129.8,0.00476558]
[1644941773994,4.29024068,3130.6,3129.3,0.00476558]